bitfinex-derivatives/quotes_ETHF0:USTF0_20251012
["timestamp","ask_amount","ask_price","bid_price","bid_amount"]
[1760278680855,0.00257149,3825.4,3825.3,1.25945]
[1760278681058,1.22523,3827.2,3826.6,0.789]
[1760278681259,0.47025,3827.0,3826.6,0.47029]
[1760278681559,0.47025,3827.0,3826.6,0.789]
[1760278681560,2.72745075,3826.7,3826.6,0.789]
[1760278681768,0.22,3827.3,3826.5,0.4703]
[1760278681964,44.28245075,3826.7,3826.6,0.47029]
[1760278682263,41.555,3826.7,3826.6,0.47029]
[1760278682467,40.8,3826.7,3826.6,1.24929]
[1760278682666,43.64502136,3826.7,3826.6,1.24929]
[1760278682861,0.7421,3826.6,3826.4,3.9868]
[1760278683060,43.64502136,3826.7,3826.4,0.47031]
[1760278683366,2.84502136,3826.5,3826.4,0.47031]
[1760278683562,2.88320312,3826.6,3826.4,0.47031]
[1760278683762,40.8,3826.7,3826.6,0.47029]
[1760278683961,40.8,3826.7,3826.6,0.779]
[1760278684165,40.8,3826.7,3826.4,1.24931]
[1760278684166,3.62530312,3826.6,3826.4,1.24931]
[1760278684559,3.62530312,3826.6,3826.4,0.47031]
[1760278684760,2.88320312,3826.6,3826.5,0.779]
[1760278685064,2.88320312,3826.6,3826.5,1.0755]
[1760278685868,3.62530312,3826.6,3826.4,0.47031]
[1760278686463,2.88320312,3826.6,3826.5,1.0755]
[1760278687657,40.8,3826.7,3826.6,0.47029]
[1760278687862,40.8,3826.7,3826.6,1.24929]
[1760278689169,0.22238391,3827.3,3827.2,1.24922]
[1760278689663,41.02238391,3827.3,3827.2,1.24922]
[1760278690269,0.22238391,3827.3,3827.2,6.24922]
[1760278690472,3.2078,3829.2,3829.0,0.46999]
[1760278690661,40.8,3829.1,3829.0,0.779]
[1760278691060,43.65672436,3829.1,3829.0,0.779]
[1760278691261,43.65672436,3829.1,3829.0,1.0755]
[1760278691559,40.80322958,3829.1,3829.0,1.07884081]
[1760278691758,40.80322958,3829.1,3829.0,0.78234081]
[1760278691954,43.77082635,3829.1,3829.0,0.78234081]
[1760278692165,43.77082635,3829.1,3829.0,1.07884081]
[1760278692363,40.80322958,3829.1,3829.0,1.07884081]
[1760278693073,43.60158979,3829.1,3829.0,0.78234081]
[1760278693564,43.60158979,3829.1,3829.0,1.07884081]
[1760278693765,3.4865,3830.5,3829.0,5.29984081]
[1760278693967,0.46985,3830.3,3829.5,1.24893]
[1760278694168,2.85966494,3830.2,3829.5,1.24893]
[1760278694359,0.46985,3830.3,3829.5,1.24893]
[1760278694360,0.46985,3830.3,3829.7,0.46991]
[1760278694767,0.46985,3830.3,3829.6,0.779]
[1760278694768,43.82333906,3830.1,3829.6,0.779]
[1760278695065,44.0078,3830.1,3829.7,0.46991]
[1760278695366,0.7444,3829.9,3829.7,0.46991]
[1760278695666,2.7235022,3829.8,3829.6,0.779]
[1760278695865,2.7235022,3829.8,3829.7,1.24891]
[1760278696371,2.7235022,3830.0,3829.9,1.24888]
[1760278696574,41.5444,3830.1,3829.9,1.24888]
[1760278696870,2.98848015,3830.0,3829.9,1.24888]
[1760278697069,3.73288015,3830.0,3829.9,0.46988]
[1760278697763,6.19628015,3830.0,3829.8,0.4699]
[1760278698066,6.19628015,3830.0,3829.1,3.2078]
[1760278698067,15.69088797,3830.0,3829.1,3.67778]
[1760278698265,3.4112,3829.5,3829.0,0.00334081]
[1760278698562,0.47005,3828.6,3828.2,0.779]
[1760278698757,3.2078,3828.7,3827.7,3.2078]
[1760278698961,3.2078,3828.7,3828.6,0.779]
[1760278699363,2.79412381,3828.7,3828.6,0.779]
[1760278699765,2.79412381,3828.7,3828.6,0.78189761]
[1760278699766,2.20523381,3828.7,3828.6,0.78189761]
[1760278699964,3.2078,3829.7,3829.6,0.46992]
[1760278700169,3.9522,3829.7,3829.6,0.46992]
[1760278700463,6.84119037,3829.7,3829.6,0.46992]
[1760278700665,2.88899037,3829.7,3829.6,1.24892]
[1760278701061,40.8,3830.1,3830.0,1.24887]
[1760278701566,43.51946083,3830.1,3830.0,1.54537]
[1760278702067,46.72726083,3830.1,3829.9,0.46988]
[1760278702272,43.51946083,3830.1,3830.0,1.0755]
[1760278702969,43.51946083,3830.1,3829.9,0.46988]
[1760278703159,43.51946083,3830.1,3830.0,0.779]
[1760278703361,43.51946083,3830.1,3830.0,1.0755]
[1760278704775,40.8,3830.1,3830.0,1.0755]
[1760278705069,43.82423764,3830.1,3830.0,1.0755]
[1760278705270,43.82423764,3830.1,3830.0,1.54537]
[1760278707576,40.8,3830.1,3830.0,1.54537]
[1760278708375,43.79684232,3830.1,3830.0,1.24887]
[1760278708874,43.79684232,3830.1,3830.0,1.54537]
[1760278709273,40.8,3830.1,3830.0,1.54537]
[1760278709874,43.66825106,3830.1,3830.0,1.54537]
[1760278711571,43.66825106,3830.1,3830.0,1.24887]
[1760278713275,43.66825106,3830.1,3830.0,1.59467]
[1760278713475,0.00202051,3830.3,3830.2,0.46985]
[1760278713780,0.00202051,3830.3,3830.2,4.47465]
[1760278713970,40.80202051,3830.3,3830.2,4.47465]
[1760278714171,0.00202051,3830.3,3830.2,4.47465]
[1760278716182,3.2078,3831.4,3830.2,4.47465]
[1760278716183,3.2078,3831.9,3831.4,11.74246]
[1760278716388,0.931317,3833.1,3833.0,0.81531]
[1760278716570,0.7918,3833.2,3832.9,3.2078]
[1760278716777,3.66255792,3832.9,3832.5,4.3506]
[1760278716972,0.7918,3832.9,3832.7,0.46954]
[1760278717282,6.87035792,3832.8,3832.7,0.00247807]
[1760278717881,47.67035792,3832.8,3832.7,0.00247807]
[1760278718081,52.67035792,3832.8,3832.7,0.00247807]
[1760278719177,52.67035792,3832.8,3832.6,0.30250125]
[1760278719379,1.26139,3832.4,3831.7,0.46966]
[1760278719585,3.9996,3831.8,3831.7,0.46967]
[1760278719881,0.7918,3831.7,3831.5,0.46969]
[1760278720278,43.67075792,3831.6,3831.5,0.47278133]
[1760278720485,41.5918,3831.6,3831.5,0.00309133]
[1760278720782,44.42779637,3831.6,3831.5,0.00309133]
[1760278720977,43.63599637,3831.6,3831.5,0.00309133]
[1760278721173,40.8,3831.6,3831.5,0.00309133]
[1760278721378,40.8,3831.6,3831.5,0.80009133]
[1760278722580,44.31587033,3831.6,3831.5,0.00309133]
[1760278722984,44.31587033,3831.6,3831.5,0.83729133]
[1760278723185,40.8,3831.6,3831.5,0.83729133]
[1760278724184,41.6523,3831.6,3831.5,0.00309133]
[1760278724376,44.44924725,3831.6,3831.5,0.00309133]
[1760278725185,43.59694725,3831.6,3831.5,0.83729133]
[1760278725986,3.2078,3831.9,3831.5,0.83729133]
[1760278726281,3.2078,3831.9,3831.5,0.00309133]
[1760278726482,43.69952795,3831.8,3831.7,0.8342]
[1760278726791,40.8,3831.8,3831.7,0.8342]
[1760278727682,41.6523,3831.8,3831.7,0.8342]
[1760278728196,0.8523,3831.7,3831.6,0.46967]
[1760278728493,3.71295393,3831.7,3831.6,0.46967]
[1760278729896,3.71295393,3831.7,3831.6,1.30387]
[1760278730588,2.86065393,3831.7,3831.6,1.30387]
[1760278730790,40.8,3831.8,3831.7,0.8342]
[1760278731383,3.2078,3832.3,3832.2,1.30381]
[1760278731790,3.2078,3832.3,3832.2,6.30381]
[1760278731993,40.8,3832.8,3832.7,1.30374]
[1760278734291,44.37371355,3832.8,3832.7,1.30374]
[1760278734493,0.46955,3832.7,3832.4,0.46958]
[1760278734796,2.84362209,3832.6,3832.3,0.8342]
[1760278734988,0.8523,3832.5,3832.4,0.46958]
[1760278735188,0.8523,3832.5,3832.3,0.8342]
[1760278735486,0.8523,3832.4,3832.3,0.8342]
[1760278735688,0.8523,3832.4,3832.0,0.3438]
[1760278735689,41.6523,3832.4,3832.0,0.3438]
[1760278735897,46.96631495,3832.4,3832.0,0.46963]
[1760278736094,47.43589495,3832.4,3832.0,0.46963]
[1760278736297,1.3219,3832.3,3831.8,0.46965]
[1760278736495,1.3219,3832.3,3831.7,0.46967]
[1760278736496,0.8523,3832.3,3831.7,0.46967]
[1760278736794,0.8523,3831.9,3831.8,0.46965]
[1760278736997,0.8523,3831.6,3831.5,0.00309133]
[1760278737303,3.63620126,3831.6,3831.5,0.00309133]
[1760278737497,44.43620126,3831.6,3831.5,0.00309133]
[1760278737799,49.43620126,3831.6,3831.5,0.00309133]
[1760278738300,44.43620126,3831.6,3831.5,0.00309133]
[1760278738992,49.43620126,3831.6,3831.5,0.00309133]
[1760278739189,0.3489,3831.5,3830.5,0.8342]
[1760278739389,0.8523,3831.0,3830.8,0.46978]
[1760278739588,0.3489,3831.0,3830.6,0.4698]
[1760278739790,0.3489,3831.0,3830.2,3.2078]
[1760278739791,0.8523,3830.8,3830.2,3.2078]
[1760278739987,0.8523,3830.4,3830.2,3.2078]
[1760278740193,0.8523,3830.4,3830.2,3.68068296]
[1760278740391,3.2078,3831.1,3831.0,1.30395]
[1760278740587,3.2078,3831.5,3831.2,0.46972]
[1760278740787,4.0601,3831.5,3831.3,0.46971]
[1760278740986,2.8648046,3831.4,3831.3,1.30391]
[1760278741387,4.0601,3831.5,3831.3,1.30391]
[1760278741388,3.2078,3831.5,3831.3,1.30391]
[1760278741593,3.61629419,3831.4,3830.8,0.8342]
[1760278741899,0.8523,3831.3,3831.2,0.46972]
[1760278742294,3.61629419,3831.3,3831.2,0.46972]
[1760278743293,2.76399419,3831.3,3831.2,1.33232]
[1760278743494,2.76399419,3831.3,3831.1,0.46974]
[1760278743495,0.869,3831.2,3831.1,0.46974]
[1760278743697,0.869,3831.2,3830.7,2.70154395]
[1760278743698,0.869,3831.2,3830.7,0.8626]
[1760278743894,0.869,3831.2,3831.0,0.46974]
[1760278743895,0.869,3831.1,3831.0,0.46974]
[1760278744300,3.60323586,3831.1,3831.0,0.46974]
[1760278744709,0.3199,3831.0,3830.5,1.83894395]
[1760278744897,0.3199,3831.0,3830.3,1.83894395]
[1760278745097,0.46979,3830.7,3830.4,0.46983]
[1760278745306,0.869,3830.5,3830.4,0.46983]
[1760278745601,0.869,3830.5,3830.2,5.91237691]
[1760278745602,2.73129228,3830.6,3830.5,1.33241]
[1760278745800,4.54654,3831.1,3830.5,2.70154395]
[1760278745801,4.0768,3831.1,3830.5,2.70154395]
[1760278745997,3.67754,3831.1,3830.8,0.46977]
[1760278746192,0.869,3830.9,3830.8,0.46977]
[1760278746401,41.669,3830.9,3830.8,0.46977]
[1760278746798,41.669,3830.9,3830.8,1.33237]
[1760278747103,41.669,3830.9,3830.8,0.46977]
[1760278747397,41.669,3830.9,3830.5,1.83894395]
[1760278747398,43.78058921,3830.9,3830.3,1.83894395]
[1760278747598,1.33878,3830.8,3830.4,0.46983]
[1760278747793,1.33878,3830.8,3830.3,1.83894395]
[1760278747794,0.46983,3830.4,3830.3,1.83894395]
[1760278747993,0.46983,3830.4,3830.2,0.47288296]
[1760278748193,1.33884,3830.3,3830.2,1.84197691]
[1760278748393,1.33884,3830.3,3830.2,0.00303296]
[1760278748595,9.08410433,3830.3,3830.2,0.00303296]
[1760278748792,0.46991,3829.7,3829.4,2.30889395]
[1760278748991,0.869,3829.5,3829.4,0.46995]
[1760278749293,3.60125511,3829.5,3829.4,0.46995]
[1760278749497,3.92115511,3829.5,3829.4,0.46995]
[1760278749700,0.869,3829.4,3829.3,3.67776]
[1760278749900,0.869,3829.4,3829.3,0.46996]
[1760278750092,44.48398198,3829.4,3829.3,0.47216885]
[1760278750301,40.8,3829.4,3829.3,9.54256885]
[1760278750493,40.8,3829.4,3829.3,1.33476885]
[1760278750900,41.669,3829.4,3829.3,0.47216885]
[1760278751102,44.49553599,3829.4,3829.3,0.00220885]
[1760278751507,44.96548599,3829.4,3829.3,0.00220885]
[1760278753307,47.70333599,3829.4,3829.3,0.00220885]
[1760278754808,47.70333599,3829.4,3829.3,0.47216885]
[1760278755013,47.70333599,3829.4,3829.3,0.00220885]
[1760278755308,53.17328599,3829.4,3829.3,0.00220885]
[1760278755503,56.50610329,3829.4,3829.3,0.00220885]
[1760278755703,0.3199,3828.5,3828.0,3.67791]
[1760278755910,0.869,3828.4,3828.3,0.47008]
[1760278756209,0.869,3828.3,3828.0,3.2078]
[1760278756421,0.869,3828.3,3828.2,0.4701]
[1760278756708,3.60956493,3828.2,3828.1,0.47011]
[1760278756911,0.869,3828.2,3828.1,0.47317082]
[1760278757103,3.66489596,3828.2,3828.1,0.47317082]
[1760278757407,6.87269596,3828.2,3828.1,0.00306082]
[1760278759009,6.87269596,3828.2,3828.1,0.47317082]
[1760278760707,40.8,3828.4,3828.3,0.47008]
[1760278760906,0.32283008,3829.5,3828.1,5.00306082]
[1760278760907,3.2078,3829.1,3829.0,1.6595]
[1760278761106,3.2078,3829.1,3828.9,0.47001]
[1760278761311,0.3199,3829.0,3828.5,4.0704]
[1760278761516,0.47005,3828.6,3828.1,0.00306082]
[1760278761708,0.869,3828.4,3828.3,0.47008]
[1760278761908,41.669,3828.4,3828.3,0.47008]
[1760278763208,44.57862043,3828.4,3828.3,0.47008]
[1760278763408,43.70962043,3828.4,3828.3,0.47008]
[1760278763618,44.57862043,3828.4,3828.3,0.47008]
[1760278766011,43.70962043,3828.4,3828.1,0.00306082]
[1760278766315,4.0768,3828.3,3828.2,0.4701]
[1760278766716,6.79967279,3828.3,3828.2,0.4701]
[1760278766918,47.59967279,3828.3,3828.2,0.4701]
[1760278767220,44.39187279,3828.3,3828.2,0.4701]
[1760278767921,44.39187279,3828.3,3828.2,1.3327]
[1760278768512,43.52287279,3828.3,3828.2,1.3327]
[1760278768718,40.8,3828.3,3828.2,1.3327]
[1760278775225,40.8,3828.3,3828.2,4.5405]
[1760278775726,1.1713,3829.0,3828.9,0.47001]
[1760278775727,0.8514,3829.0,3828.9,0.47001]
[1760278776121,3.89349307,3829.0,3828.9,0.47001]
[1760278776428,44.69349307,3829.0,3828.9,0.47001]
[1760278778726,45.78519307,3829.0,3828.9,0.47001]
[1760278778928,45.78519307,3829.0,3828.9,2.38361]
[1760278779631,45.46539307,3829.0,3828.9,4.22531819]
[1760278780026,45.46539307,3829.0,3828.9,1.03741]
[1760278780226,45.78519307,3829.0,3828.7,1.84539206]
[1760278780428,44.93379307,3829.0,3828.7,1.84539206]
[1760278780624,44.93379307,3829.0,3828.3,2.32561551]
[1760278780625,1.9431,3828.7,3828.6,1.84539206]
[1760278780829,2.2629,3828.5,3828.3,1.84539206]
[1760278781029,1.9431,3828.2,3828.1,1.84845288]
[1760278781220,1.9431,3828.2,3828.1,0.00306082]
[1760278781221,4.0592,3828.2,3828.1,0.00306082]
[1760278781427,7.28686583,3828.2,3828.1,0.00306082]
[1760278781827,47.61676583,3828.2,3828.1,0.00306082]
[1760278782435,0.47013,3827.9,3827.8,0.02612467]
[1760278782730,1.32153,3827.9,3827.8,0.02612467]
[1760278782936,0.3157,3827.5,3827.2,2.31561206]
[1760278783229,3.00724202,3827.4,3827.3,1.84539206]
[1760278783436,3.86344202,3827.4,3827.3,0.47021]
[1760278783739,0.8562,3827.3,3827.2,1.84539206]
[1760278784230,3.86344202,3827.3,3827.2,1.84539206]
[1760278784832,44.0078,3827.4,3827.3,0.47021]
[1760278784833,41.6562,3827.4,3827.3,0.47021]
[1760278785022,2.95789012,3827.3,3827.2,1.84837638]
[1760278785226,3.81409012,3827.3,3827.2,1.84837638]
[1760278785528,0.8562,3827.3,3827.1,2.31860638]
[1760278785730,0.8562,3827.2,3827.1,2.31860638]
[1760278785931,0.8562,3827.2,3827.1,0.47023]
[1760278786132,3.65626086,3827.2,3827.1,0.47023]
[1760278786324,2.80006086,3827.2,3827.1,3.10010638]
[1760278786834,0.8562,3827.2,3827.1,1.84837638]
[1760278787131,40.8,3827.4,3827.1,1.84837638]
[1760278787132,41.6562,3827.4,3827.3,0.7815]
[1760278787326,41.6562,3827.4,3827.3,0.47021]
[1760278787728,44.43085646,3827.4,3827.3,0.47021]
[1760278787929,0.8562,3827.3,3827.0,2.31861638]
[1760278788230,4.064,3827.1,3827.0,1.84837638]
[1760278788427,4.064,3827.1,3827.0,0.47024]
[1760278788628,7.9668505,3827.1,3827.0,0.47024]
[1760278789129,1.958,3826.9,3826.7,1.84837638]
[1760278789327,1.958,3826.8,3826.7,0.47028]
[1760278789534,4.99204457,3826.8,3826.7,0.47028]
[1760278789836,42.76074513,3826.8,3826.7,0.47028]
[1760278790034,45.56409758,3826.8,3826.7,0.47028]
[1760278792032,45.56409758,3826.8,3826.7,1.02428]
[1760278792226,40.80274513,3826.8,3826.7,2.33458]
[1760278792428,42.76074513,3826.8,3826.7,1.02428]
[1760278792736,45.60749952,3826.8,3826.7,1.02428]
[1760278795237,45.60749952,3826.8,3826.7,2.33458]
[1760278796931,45.60749952,3826.8,3826.2,3.2078]
[1760278796932,1.958,3826.3,3826.2,2.87271638]
[1760278797437,1.958,3826.3,3826.2,1.02434]
[1760278797639,1.958,3826.3,3825.9,1.17594]
[1760278797640,2.2737,3826.0,3825.9,1.84837638]
[1760278797836,1.1018,3825.6,3825.5,1.02443]
[1760278798031,0.5747,3825.6,3825.5,4.18310638]
[1760278798233,41.3747,3825.6,3825.5,4.18310638]
[1760278798433,41.3747,3825.6,3825.5,2.33473]
[1760278798834,42.758,3825.6,3825.4,5.05617638]
[1760278799029,2.2737,3825.5,3825.4,3.67824]
[1760278799235,2.2737,3825.5,3825.4,0.47044]
[1760278799434,5.08820438,3825.5,3825.4,0.47044]
[1760278799640,5.08820438,3825.5,3825.4,1.02444]
[1760278800333,2.2737,3825.5,3825.4,1.80594]
[1760278800944,1.958,3825.5,3825.4,2.33474]
[1760278801132,4.3096,3826.4,3826.3,0.47033]
[1760278801530,7.32574709,3826.4,3826.3,0.47033]
[1760278801736,15.72649199,3826.4,3825.5,2.62492307]
[1760278801938,15.72649199,3826.4,3825.7,0.4704]
[1760278801939,3.2078,3825.8,3825.7,0.4704]
[1760278802138,44.0078,3825.8,3825.7,0.4704]
[1760278802440,46.98557338,3825.8,3825.7,0.4704]
[1760278803037,47.80037338,3825.8,3825.7,0.4704]
[1760278803941,44.59257338,3825.8,3825.7,0.4704]
[1760278804240,3.79257338,3825.8,3825.7,0.4704]
[1760278804835,3.79257338,3825.8,3824.8,1.17629]
[1760278804836,14.55287304,3825.8,3824.8,1.17629]
[1760278805138,0.8148,3825.3,3825.2,0.47045]
[1760278805342,5.8148,3825.3,3825.2,0.47046]
[1760278805535,0.8148,3824.9,3824.8,0.47051]
[1760278805735,41.6148,3824.9,3824.8,0.47051]
[1760278806036,44.43160235,3824.9,3824.8,0.47051]
[1760278806441,43.61680235,3824.9,3824.8,0.47051]
[1760278806945,2.81680235,3824.9,3824.8,1.28811]
[1760278807136,0.1697,3825.5,3825.4,0.47044]
[1760278807639,6.52639084,3825.5,3825.4,0.47044]
[1760278807840,47.32639084,3825.5,3825.4,0.47044]
[1760278808433,48.14119084,3825.5,3825.4,0.47044]
[1760278810748,42.90335362,3825.5,3825.4,1.28804]
[1760278810949,0.1658,3827.0,3825.4,1.28804]
[1760278810950,0.8148,3826.7,3826.6,1.28789]
[1760278811145,0.8148,3827.3,3827.2,0.47022]
[1760278811544,5.88953239,3827.3,3827.2,0.47022]
[1760278811848,46.68953239,3827.3,3827.2,0.47022]
[1760278812246,46.69206757,3827.3,3827.2,0.47301137]
[1760278816047,41.73408922,3827.3,3827.2,1.29061137]
[1760278816254,0.8148,3828.2,3827.6,1.17543]
[1760278816450,4.80787078,3828.9,3828.1,1.28771]
[1760278816649,2.97610494,3828.4,3828.1,1.28771]
[1760278816848,3.79090494,3828.4,3828.3,0.47008]
[1760278817049,5.3333961,3828.8,3828.7,0.47003]
[1760278817050,0.8148,3828.8,3828.7,0.47003]
[1760278817255,40.80233674,3828.8,3828.7,0.47003]
[1760278817453,0.00233674,3828.8,3828.7,0.47003]
[1760278817846,0.00233674,3828.8,3828.7,4.49543]
[1760278818451,4.0226,3829.8,3829.7,0.46991]
[1760278818654,3.2078,3829.8,3829.3,1.17489]
[1760278818955,3.2078,3829.8,3827.8,1.8324336]
[1760278818956,0.47005,3828.6,3827.8,1.8324336]
[1760278819251,0.8148,3828.4,3828.2,0.47009]
[1760278819457,41.6148,3828.3,3828.2,0.47009]
[1760278819656,47.99838132,3828.3,3828.2,0.47009]
[1760278820256,44.60759262,3828.3,3828.2,0.47009]
[1760278820858,0.00293096,3828.4,3828.3,0.8176]
[1760278821244,2.82946351,3828.4,3828.3,0.8176]
[1760278821654,43.62946351,3828.4,3828.3,0.8176]
[1760278822057,43.62946351,3828.4,3828.2,0.47009]
[1760278822259,43.62946351,3828.4,3827.4,2.6500336]
[1760278822260,0.8148,3828.3,3827.4,3.2078]
[1760278822452,0.8148,3827.9,3827.8,0.47014]
[1760278822959,3.74547664,3827.9,3827.8,0.47014]
[1760278824366,3.74547664,3827.9,3827.2,0.00279137]
[1760278824367,0.8148,3827.4,3827.2,0.00279137]
[1760278824655,2.92365413,3827.3,3827.2,0.00279137]
[1760278824863,47.98066698,3827.3,3827.2,0.00279137]
[1760278825260,45.05701285,3827.3,3827.2,0.00279137]
[1760278825461,47.98000263,3827.3,3827.2,0.00279137]
[1760278825853,0.8148,3826.9,3826.7,0.47027]
[1760278826054,3.2078,3827.0,3826.8,0.47026]
[1760278826255,40.8,3827.3,3827.2,1.28782]
[1760278826458,2.78307162,3826.9,3826.7,0.47028]
[1760278826652,0.8148,3826.8,3826.7,0.47028]
[1760278826956,3.70665535,3826.8,3826.7,0.47224307]
[1760278827853,44.50665535,3826.8,3826.7,0.47224307]
[1760278829464,47.88429925,3826.8,3826.7,0.00196307]
[1760278829661,1.49149,3826.5,3825.4,3.2078]
[1760278829863,1.49149,3826.5,3825.0,3.2078]
[1760278829864,0.8148,3825.6,3825.0,3.2078]
[1760278830170,0.8148,3825.2,3824.8,0.8176]
[1760278830459,0.8148,3825.2,3825.1,0.47048]
[1760278830672,0.81768793,3825.2,3824.8,0.8203431]
[1760278830862,0.8148,3825.1,3824.9,0.4705]
[1760278831062,0.8148,3825.1,3825.0,0.47049]
[1760278831567,0.8148,3824.9,3824.8,0.4732531]
[1760278831762,4.4931,3824.9,3824.8,0.0027431]
[1760278831967,10.95853568,3824.9,3824.8,4.31e-05]
[1760278832165,51.75853568,3824.9,3824.8,4.31e-05]
[1760278832562,56.75853568,3824.9,3824.8,4.31e-05]
[1760278833263,51.75853568,3824.9,3824.8,4.31e-05]
[1760278833465,47.84577408,3824.9,3824.8,4.31e-05]
[1760278834271,47.03097408,3824.9,3824.8,4.31e-05]
[1760278834569,47.88747408,3824.9,3824.8,4.31e-05]
[1760278834970,47.03097408,3824.9,3824.8,4.31e-05]
[1760278835167,47.03097408,3824.9,3824.8,0.7953431]
[1760278835474,47.03097408,3824.9,3824.8,4.31e-05]
[1760278836160,40.8,3824.9,3824.8,5.7953431]
[1760278836866,40.8,3824.9,3824.1,1.8324336]
[1760278836867,0.47068,3823.5,3822.7,0.47077]
[1760278837071,3.2078,3823.3,3823.0,0.3415]
[1760278837369,5.98583653,3823.2,3823.0,0.3415]
[1760278837872,40.8,3823.1,3823.0,0.34369614]
[1760278838173,43.58209457,3823.1,3823.0,0.34369614]
[1760278839071,43.58209457,3823.1,3823.0,1.13899614]
[1760278839373,47.04564901,3823.1,3823.0,1.13899614]
[1760278840575,47.04564901,3823.1,3823.0,0.34369614]
[1760278841870,52.04564901,3823.1,3823.0,0.34369614]
[1760278842376,0.47084,3822.2,3822.0,1.1368]
[1760278842565,3.2078,3822.1,3822.0,0.3415]
[1760278842767,9.3634261,3822.1,3822.0,0.3415]
[1760278843267,9.3634261,3822.1,3821.6,0.7953]
[1760278843268,50.1655009,3822.1,3821.6,0.7953]
[1760278843470,3.2078,3821.7,3821.6,0.7953]
[1760278843876,6.06030357,3821.7,3821.6,0.7953]
[1760278844174,9.49227715,3821.7,3821.6,0.7953]
[1760278845267,6.06030357,3821.7,3821.6,0.7953]
[1760278845469,40.8020748,3822.1,3822.0,1.1889]
[1760278845973,43.76167353,3822.1,3822.0,1.1889]
[1760278846677,0.0020748,3822.1,3822.0,9.3967]
[1760278847678,43.71823835,3822.1,3822.0,4.3967]
[1760278847871,43.71823835,3822.1,3822.0,1.1889]
[1760278848072,50.3090615,3822.1,3821.6,0.8378]
[1760278848274,0.47087,3822.0,3821.6,0.8378]
[1760278848574,6.66553424,3821.9,3821.8,0.8378]
[1760278848971,0.47091,3821.6,3821.5,1.1793]
[1760278849169,3.67871,3821.6,3821.5,0.3415]
[1760278849373,0.47094,3821.4,3821.0,1.1793]
[1760278849680,0.47096,3821.2,3821.1,0.8378]
[1760278849970,0.47096,3821.2,3821.0,0.3415]
[1760278849971,3.67876,3821.2,3821.0,0.3415]
[1760278850175,0.471,3820.9,3820.7,0.8378]
[1760278850380,0.47101,3820.8,3820.6,0.8378]
[1760278850571,6.78421612,3820.8,3820.6,0.8378]
[1760278850773,6.78419612,3821.0,3820.6,1.30883]
[1760278850973,3.67882,3820.7,3820.5,0.3415]
[1760278851288,0.47106,3820.4,3820.2,0.8378]
[1760278851476,0.47106,3820.4,3820.1,0.47109]
[1760278851777,6.35688341,3820.6,3820.5,1.65994]
[1760278851976,3.2078,3820.7,3820.6,0.8378]
[1760278852469,0.47104,3820.6,3820.2,0.47108]
[1760278852667,9.39704756,3820.7,3820.6,0.47103]
[1760278852868,3.2078,3820.7,3820.6,1.30883]
[1760278853070,46.96009544,3820.7,3820.6,1.30883]
[1760278853670,43.75229544,3820.7,3820.6,6.30883]
[1760278853874,3.2078,3821.6,3821.5,0.47092]
[1760278854079,3.2078,3821.6,3821.5,1.65982]
[1760278854281,6.0939179,3821.6,3821.5,1.65982]
[1760278854980,0.0020748,3822.1,3822.0,1.65976]
[1760278855680,2.92531723,3822.1,3822.0,1.65976]
[1760278855870,2.92531723,3822.1,3822.0,1.1889]
[1760278856581,0.0020748,3822.1,3822.0,6.1889]
[1760278857383,0.0020748,3822.1,3822.0,1.1889]
[1760278857676,43.72722329,3822.1,3822.0,1.1889]
[1760278858378,40.8020748,3822.1,3822.0,1.1889]
[1760278859285,40.8020748,3822.1,3822.0,6.1889]
[1760278860178,3.2078,3822.7,3822.6,1.30858]
[1760278860582,6.21855497,3822.7,3822.6,0.8378]
[1760278860978,10.10981486,3822.7,3822.5,0.3511]
[1760278861176,9.6423715,3822.7,3822.6,1.30858]
[1760278861376,9.6423715,3822.7,3822.5,0.3531748]
[1760278861577,9.6423715,3822.7,3822.6,0.47078]
[1760278861884,47.02189161,3822.7,3822.5,0.8239648]
[1760278862383,43.2596906,3822.7,3822.5,5.8239648]
[1760278862580,3.2078,3823.2,3823.1,0.47072]
[1760278862782,3.2078,3823.6,3823.5,0.81077]
[1760278863180,9.34000127,3823.6,3823.0,0.3401]
[1760278863387,3.2078,3823.2,3822.6,0.8991]
[1760278863682,40.8,3822.7,3822.6,1.36988]
[1760278864382,40.8,3822.7,3822.5,0.3531748]
[1760278864383,43.78186876,3822.7,3822.5,0.3531748]
[1760278864589,43.78186876,3822.7,3822.5,0.8239748]
[1760278864792,44.25263876,3822.7,3822.5,1.2522748]
[1760278865384,44.25263876,3822.7,3822.5,1.7230748]
[1760278865580,43.78186876,3822.7,3822.6,0.8991]
[1760278866295,46.98966876,3822.7,3822.6,0.8991]
[1760278867880,43.78186876,3822.7,3822.6,0.8991]
[1760278868086,43.78186876,3822.7,3822.6,1.36988]
[1760278869482,1.17697,3822.6,3821.8,0.8991]
[1760278869783,1.17686,3823.0,3821.2,4.1069]
[1760278869784,0.47091,3821.6,3821.2,4.1069]
[1760278869987,3.2078,3821.6,3821.2,0.8991]
[1760278870285,41.27092,3821.5,3821.3,0.47094]
[1760278870488,41.27092,3821.5,3821.4,0.47093]
[1760278870883,44.12688388,3821.5,3821.4,0.47093]
[1760278871083,0.47093,3821.4,3821.3,0.47426222]
[1760278871280,6.19925098,3821.5,3821.4,0.47093]
[1760278871484,6.19925098,3821.5,3821.4,1.37003]
[1760278871485,3.8142071,3821.5,3821.4,1.37003]
[1760278871685,44.6142071,3821.5,3821.4,1.37003]
[1760278871883,46.93621546,3821.5,3821.4,1.37003]
[1760278872282,43.59292836,3821.5,3821.4,1.37003]
[1760278872487,43.59292836,3821.5,3821.4,0.47093]
[1760278872684,0.47093,3821.4,3821.3,0.47426222]
[1760278873086,0.47097,3821.2,3820.9,0.47099]
[1760278873392,0.471,3820.9,3820.7,0.47102]
[1760278873789,46.61480294,3820.8,3820.7,0.47102]
[1760278873987,46.61480294,3820.8,3820.5,0.3401]
[1760278873988,46.61480294,3820.8,3820.5,1.2392]